fUST/lending_fUST_20250214
["ID","MTS","AMOUNT","RATE_DAILY","PERIOD"]
[353038924,1739508644233,-7241.35642001,0.00013934,5]
[353038925,1739508644245,-749.58507329,0.00013934,5]
[353038926,1739508644256,-945.60355878,0.00013934,5]
[353038931,1739508646380,-500.0,0.0001385,2]
[353038932,1739508646389,-500.0,0.00013851,2]
[353038933,1739508646400,-500.0,0.00013933,2]
[353038934,1739508646411,-18026.72494623,0.00013934,5]
[353038935,1739508646422,-500.0,0.00013934,2]
[353038936,1739508646432,-500.0,0.00013934,2]
[353038937,1739508646442,-500.0,0.00013934,2]
[353038938,1739508646453,-500.0,0.00013934,2]
[353038939,1739508646463,-500.0,0.00013934,2]
[353038940,1739508646472,-500.0,0.00013934,2]
[353038941,1739508646481,-500.0,0.00013934,2]
[353038942,1739508646491,-500.0,0.00013934,2]
[353038943,1739508646501,-500.0,0.00013934,2]
[353038944,1739508646510,-500.0,0.00013934,2]
[353038945,1739508646519,-500.0,0.00013934,2]
[353038946,1739508646530,-500.0,0.00013934,2]
[353038947,1739508646539,-500.0,0.00013934,2]
[353038948,1739508646548,-500.0,0.00013934,2]
[353038949,1739508646558,-500.0,0.00013934,2]
[353038950,1739508646567,-500.0,0.00013934,2]
[353038951,1739508646580,-500.0,0.00013934,2]
[353038952,1739508646589,-567.09,0.00013934,2]
[353038953,1739508646599,-500.0,0.00013934,2]
[353038954,1739508646608,-500.0,0.00013934,2]
[353038955,1739508646619,-500.0,0.00013934,2]
[353038956,1739508646628,-393.77940514,0.00013934,2]
[353038957,1739508646641,-5623.01059486,0.00013934,2]
[353038958,1739508646651,-500.0,0.00013934,2]
[353038959,1739508646660,-500.0,0.00013934,2]
[353038960,1739508646670,-1817.78,0.00013934,2]
[353038961,1739508646679,-500.0,0.00013934,2]
[353038962,1739508646689,-500.0,0.00013934,2]
[353038963,1739508646699,-500.0,0.00013934,2]
[353038964,1739508646708,-500.0,0.00013934,2]
[353038965,1739508646717,-500.0,0.00013934,2]
[353038966,1739508646727,-500.0,0.00013934,2]
[353038967,1739508646736,-500.0,0.00013934,2]
[353038968,1739508646746,-500.0,0.00013934,2]
[353038969,1739508646755,-500.0,0.00013934,2]
[353038970,1739508646765,-500.0,0.00013934,2]
[353038971,1739508646774,-500.0,0.00013934,2]
[353038972,1739508646785,-500.0,0.00013934,2]
[353038973,1739508646794,-358.77865761,0.00013934,2]
[353038974,1739508646804,-500.0,0.00013935,2]
[353038975,1739508646815,-500.0,0.00013935,2]
[353038976,1739508646825,-500.0,0.00013935,2]
[353038977,1739508646835,-631.92330334,0.00013935,2]
[353038978,1739508646956,-500.0,0.00013935,2]
[353038979,1739508646967,-500.0,0.00013935,2]
[353038980,1739508646977,-500.0,0.00013935,2]
[353038981,1739508646987,-500.0,0.00013935,2]
[353038982,1739508646998,-501.34277435,0.00013935,2]
[353038983,1739508647008,-500.0,0.00013935,2]
[353038984,1739508647018,-500.0,0.00013935,2]
[353038985,1739508647028,-500.0,0.00013935,2]
[353038986,1739508647038,-500.0,0.00013935,2]
[353038987,1739508647048,-500.0,0.00013935,2]
[353038988,1739508647058,-500.0,0.00013935,2]
[353038989,1739508647068,-500.0,0.00013935,2]
[353038990,1739508647077,-500.0,0.00013935,2]
[353038991,1739508647087,-1000.0,0.00013935,2]
[353038992,1739508647098,-247.76227359,0.00013935,2]
[353038993,1739508647110,-252.23772641,0.00013935,2]
[353038994,1739508647120,-94.76227359,0.00013935,2]
[353038995,1739508647132,-405.23772641,0.00013935,2]
[353038996,1739508647142,-489.00513059,0.00013935,2]
[353038997,1739508647154,-10.99486941,0.00013935,2]
[353038998,1739508647164,-500.0,0.00013935,2]
[353038999,1739508647174,-500.0,0.00013935,2]
[353039000,1739508647184,-500.0,0.00013935,2]
[353039001,1739508647195,-500.0,0.00013935,2]
[353039002,1739508647204,-500.0,0.00013935,2]
[353039003,1739508647214,-500.0,0.00013935,2]
[353039004,1739508647224,-500.0,0.00013935,2]
[353039005,1739508647234,-503.9299007,0.00013935,2]
[353039006,1739508647243,-501.07051191,0.00013935,2]
[353039007,1739508647253,-500.0,0.00013935,2]
[353039008,1739508647264,-178.61064595,0.00013935,2]
[353039009,1739508647274,-500.0,0.00013935,2]
[353039010,1739508647284,-502.08802278,0.00013935,2]
[353039011,1739508647294,-502.65064389,0.00013935,2]
[353039012,1739508647303,-142.96639745,0.00013935,2]
[353039014,1739509613145,-173.85352102,0.00010685,2]
[353039052,1739509832708,-61.07482898,0.00010685,2]
[353039054,1739509832717,-2652.45915969,0.00013421,2]
[353039056,1739509832727,-203.007565,0.00013699,2]
[353039059,1739509832737,-610.6532471,0.00013732,2]
[353039061,1739509832746,-433.79654215,0.00013747,2]
[353039063,1739509832755,-170.02919708,0.00013751,2]
[353039065,1739509832765,-155.7604454,0.0001383,2]
[353039067,1739509832774,-300.0,0.0001383,2]
[353039069,1739509832783,-691.14065965,0.00013831,2]
[353039071,1739509832793,-3442.45,0.00013831,2]
[353039073,1739509832802,-500.0,0.00013831,2]
[353039075,1739509832811,-670.04,0.00013831,2]
[353039077,1739509832821,-555.22,0.00013831,2]
[353039079,1739509832830,-500.0,0.00013831,2]
[353039081,1739509832839,-500.0,0.00013831,2]
[353039083,1739509832849,-500.0,0.00013831,2]
[353039085,1739509832858,-500.0,0.00013831,2]
[353039087,1739509832867,-500.0,0.00013831,2]
[353039089,1739509832877,-500.0,0.00013831,2]
[353039091,1739509832886,-500.0,0.00013831,2]
[353039093,1739509832895,-500.0,0.00013831,2]
[353039095,1739509832905,-500.0,0.00013831,2]
[353039097,1739509832914,-623.04,0.00013831,2]
[353039099,1739509832923,-500.0,0.00013831,2]
[353039101,1739509832932,-567.78,0.00013831,2]
[353039103,1739509832942,-500.0,0.00013831,2]
[353039105,1739509832951,-500.0,0.00013831,2]
[353039107,1739509832960,-500.0,0.00013831,2]
[353039109,1739509832969,-548.71,0.00013831,2]
[353039111,1739509832979,-500.0,0.00013831,2]
[353039113,1739509832988,-500.0,0.00013831,2]
[353039115,1739509832998,-500.0,0.00013831,2]
[353039117,1739509833007,-500.0,0.00013831,2]
[353039119,1739509833017,-500.0,0.00013831,2]
[353039121,1739509833026,-500.0,0.00013831,2]
[353039123,1739509833036,-500.0,0.00013831,2]
[353039125,1739509833045,-500.0,0.00013831,2]
[353039127,1739509833055,-500.0,0.00013831,2]
[353039129,1739509833065,-500.0,0.00013831,2]
[353039131,1739509833075,-500.0,0.00013831,2]
[353039133,1739509833084,-803.53,0.00013831,2]
[353039135,1739509833094,-500.0,0.00013831,2]
[353039137,1739509833103,-3942.4,0.00013831,2]
[353039139,1739509833113,-500.0,0.00013831,2]
[353039141,1739509833122,-564.98,0.00013831,2]
[353039143,1739509833132,-557.07909303,0.00013831,2]
[353039145,1739509833140,-500.0,0.00013831,2]
[353039147,1739509833150,-502.60092427,0.00013832,2]
[353039149,1739509833159,-500.0,0.00013832,2]
[353039151,1739509833170,-504.40682222,0.00013832,2]
[353039154,1739509833180,-500.0,0.00013832,2]
[353039156,1739509833189,-500.0,0.00013832,2]
[353039158,1739509833200,-500.0,0.00013832,2]
[353039160,1739509833210,-503.49520543,0.00013832,2]
[353039162,1739509833226,-177.54827716,0.00013832,2]
[353039164,1739509833235,-500.0,0.00013832,2]
[353039166,1739509833244,-500.0,0.00013832,2]
[353039168,1739509833254,-505.14423821,0.00013832,2]
[353039169,1739509833264,-510.06623437,0.00013832,2]
[353039172,1739509833274,-411.74466079,0.00013832,2]
[353039174,1739509833284,-500.0,0.00013832,2]
[353039176,1739509833294,-500.0,0.00013832,2]
[353039178,1739509833304,-500.0,0.00013832,2]
[353039180,1739509833313,-500.0,0.00013832,2]
[353039182,1739509833323,-500.0,0.00013832,2]
[353039183,1739509833332,-500.0,0.00013832,2]
[353039185,1739509833342,-500.0,0.00013832,2]
[353039187,1739509833351,-500.0,0.00013832,2]
[353039190,1739509833361,-500.0,0.00013832,2]
[353039191,1739509833371,-500.0,0.00013832,2]
[353039194,1739509833381,-502.13907655,0.00013832,2]
[353039195,1739509833391,-500.0,0.00013832,2]
[353039197,1739509833400,-501.87606981,0.00013832,2]
[353039200,1739509833410,-500.0,0.00013832,2]
[353039202,1739509833419,-500.0,0.00013832,2]
[353039204,1739509833429,-500.0,0.00013832,2]
[353039206,1739509833439,-500.0,0.00013832,2]
[353039208,1739509833448,-500.0,0.00013832,2]
[353039210,1739509833458,-500.0,0.00013832,2]
[353039212,1739509833467,-500.0,0.00013832,2]
[353039214,1739509833476,-500.0,0.00013832,2]
[353039216,1739509833485,-500.0,0.00013832,2]
[353039218,1739509833495,-500.0,0.00013832,2]
[353039220,1739509833504,-500.0,0.00013832,2]
[353039222,1739509833514,-500.0,0.00013832,2]
[353039224,1739509833523,-500.0,0.00013832,2]
[353039226,1739509833532,-500.0,0.00013832,2]
[353039228,1739509833542,-258.35330489,0.00013832,2]
[353039230,1739509833551,-500.0,0.00013832,2]
[353039231,1739509833560,-500.0,0.00013832,2]
[353039233,1739509833570,-500.0,0.00013832,2]
[353039235,1739509833580,-500.0,0.00013832,2]
[353039237,1739509833589,-503.17141945,0.00013832,2]
[353039239,1739509833599,-500.0,0.00013832,2]
[353039241,1739509833608,-500.0,0.00013832,2]
[353039242,1739509833617,-213.97509323,0.00013832,2]
[353039244,1739509833628,-500.0,0.00013832,2]
[353039246,1739509833637,-500.0,0.00013832,2]
[353039248,1739509833646,-501.40233573,0.00013832,2]
[353039250,1739509833655,-500.0,0.00013832,2]
[353039251,1739509833665,-500.0,0.00013832,2]
[353039253,1739509833674,-500.0,0.00013832,2]
[353039255,1739509833684,-500.0,0.00013832,2]
[353039257,1739509833693,-508.44518752,0.00013832,2]
[353039259,1739509833703,-500.0,0.00013832,2]
[353039261,1739509833713,-500.0,0.00013832,2]
[353039262,1739509833722,-500.0,0.00013832,2]
[353039263,1739509833731,-500.0,0.00013832,2]
[353039264,1739509833740,-500.0,0.00013832,2]
[353039265,1739509833750,-500.0,0.00013832,2]
[353039266,1739509833760,-500.0,0.00013832,2]
[353039267,1739509833769,-500.0,0.00013832,2]
[353039268,1739509833779,-500.0,0.00013832,2]
[353039269,1739509833788,-500.0,0.00013832,2]
[353039270,1739509833797,-507.51000782,0.00013832,2]
[353039271,1739509833806,-502.41501435,0.00013832,2]
[353039272,1739509833815,-506.04154076,0.00013832,2]
[353039273,1739509833824,-500.0,0.00013832,2]
[353039274,1739509833834,-500.0,0.00013832,2]
[353039275,1739509833842,-500.0,0.00013832,2]
[353039276,1739509833851,-500.0,0.00013832,2]
[353039277,1739509833860,-500.0,0.00013832,2]
[353039279,1739509833869,-500.0,0.00013832,2]
[353039280,1739509833879,-500.0,0.00013832,2]
[353039281,1739509833888,-297.32347391,0.00013832,2]
[353039282,1739509833898,-500.0,0.00013832,2]
[353039283,1739509833907,-500.0,0.00013832,2]
[353039284,1739509833916,-500.0,0.00013832,2]
[353039285,1739509833925,-500.0,0.00013832,2]
[353039286,1739509833935,-500.0,0.00013832,2]
[353039287,1739509833944,-500.0,0.00013832,2]
[353039288,1739509833953,-500.0,0.00013832,2]
[353039289,1739509833962,-500.0,0.00013832,2]
[353039290,1739509833972,-500.0,0.00013832,2]
[353039291,1739509833981,-500.0,0.00013832,2]
[353039292,1739509833991,-500.0,0.00013832,2]
[353039293,1739509834000,-500.0,0.00013832,2]
[353039294,1739509834010,-501.95325748,0.00013832,2]
[353039295,1739509834019,-502.08796626,0.00013832,2]
[353039296,1739509834028,-500.0,0.00013832,2]
[353039297,1739509834038,-500.0,0.00013832,2]
[353039298,1739509834047,-500.0,0.00013832,2]
[353039299,1739509834057,-500.0,0.00013832,2]
[353039300,1739509834066,-500.0,0.00013832,2]
[353039301,1739509834076,-500.77889544,0.00013832,2]
[353039302,1739509834086,-502.00283634,0.00013832,2]
[353039303,1739509834095,-500.0,0.00013832,2]
[353039304,1739509834105,-500.0,0.00013832,2]
[353039305,1739509834114,-500.0,0.00013832,2]
[353039306,1739509834124,-500.0,0.00013832,2]
[353039307,1739509834134,-500.0,0.00013832,2]
[353039308,1739509834143,-500.0,0.00013832,2]
[353039309,1739509834152,-500.0,0.00013832,2]
[353039310,1739509834162,-500.0,0.00013832,2]
[353039311,1739509834171,-500.0,0.00013832,2]
[353039312,1739509834181,-500.0,0.00013832,2]
[353039313,1739509834191,-500.0,0.00013832,2]
[353039314,1739509834200,-500.0,0.00013832,2]
[353039315,1739509834210,-500.0,0.00013832,2]
[353039316,1739509834223,-500.0,0.00013832,2]
[353039317,1739509834233,-500.0,0.00013832,2]
[353039318,1739509834242,-500.0,0.00013832,2]
[353039319,1739509834251,-3.44091872,0.00013832,2]
[353039320,1739509834272,-499.76594397,0.00013832,2]
[353039321,1739509834281,-500.0,0.00013832,2]
[353039322,1739509834292,-500.0,0.00013832,2]
[353039323,1739509834301,-527.44135703,0.00013832,2]
[353039324,1739509834311,-500.0,0.00013832,2]
[353039325,1739509834320,-502.61180044,0.00013832,2]
[353039326,1739509834330,-500.0,0.00013832,2]
[353039327,1739509834339,-500.0,0.00013832,2]
[353039328,1739509834349,-500.0,0.00013832,2]
[353039329,1739509834358,-500.0,0.00013832,2]
[353039330,1739509834368,-7087.21,0.00013832,2]
[353039331,1739509834381,-500.0,0.00013832,2]
[353039332,1739509834390,-500.0,0.00013832,2]
[353039333,1739509834400,-504.10515674,0.00013832,2]
[353039334,1739509834409,-500.0,0.00013832,2]
[353039335,1739509834419,-500.0,0.00013832,2]
[353039336,1739509834429,-500.0,0.00013832,2]
[353039337,1739509834438,-500.0,0.00013832,2]
[353039338,1739509834447,-2526.17,0.00013832,2]
[353039339,1739509834455,-500.0,0.00013832,2]
[353039340,1739509834587,-500.0,0.00013832,2]
[353039341,1739509834602,-567.0,0.00013832,2]
[353039342,1739509834612,-500.0,0.00013832,2]
[353039343,1739509834622,-500.0,0.00013832,2]
[353039344,1739509834632,-500.88625841,0.00013832,2]
[353039345,1739509834642,-500.0,0.00013832,2]
[353039346,1739509834651,-500.0,0.00013832,2]
[353039347,1739509834660,-500.0,0.00013832,2]
[353039348,1739509834670,-500.0,0.00013832,2]
[353039349,1739509834679,-500.0,0.00013832,2]
[353039350,1739509834688,-502.16613187,0.00013832,2]
[353039351,1739509834697,-500.0,0.00013832,2]
[353039352,1739509834707,-500.0,0.00013832,2]
[353039353,1739509834717,-502.78673095,0.00013832,2]
[353039354,1739509834726,-500.0,0.00013832,2]
[353039355,1739509834736,-500.0,0.00013832,2]
[353039356,1739509834745,-500.0,0.00013832,2]
[353039357,1739509834754,-500.0,0.00013832,2]
[353039358,1739509834763,-502.8538781,0.00013832,2]
[353039359,1739509834772,-500.0,0.00013832,2]
[353039360,1739509834782,-500.0,0.00013832,2]
[353039361,1739509834791,-500.0,0.00013832,2]
[353039362,1739509834801,-500.0,0.00013832,2]
[353039363,1739509834810,-501.54808729,0.00013832,2]
[353039364,1739509834819,-500.0,0.00013832,2]
[353039365,1739509834828,-500.0,0.00013832,2]
[353039366,1739509834837,-500.0,0.00013832,2]
[353039367,1739509834846,-500.0,0.00013832,2]
[353039368,1739509834855,-624.67298155,0.00013832,2]
[353039369,1739509834864,-500.0,0.00013832,2]
[353039370,1739509834875,-500.0,0.00013832,2]
[353039371,1739509834884,-500.0,0.00013832,2]
[353039372,1739509834894,-500.0,0.00013832,2]
[353039373,1739509834903,-500.0,0.00013832,2]
[353039374,1739509834913,-500.0,0.00013832,2]
[353039375,1739509834922,-500.0,0.00013832,2]
[353039376,1739509834931,-500.0,0.00013832,2]
[353039377,1739509834940,-286.03603718,0.00013832,2]
[353039378,1739509834950,-500.0,0.00013832,2]
[353039379,1739509834959,-500.0,0.00013832,2]
[353039380,1739509834968,-501.50530517,0.00013832,2]
[353039381,1739509834977,-502.99163922,0.00013832,2]
[353039382,1739509834986,-500.0,0.00013832,2]
[353039383,1739509834997,-500.0,0.00013832,2]
[353039384,1739509835007,-500.0,0.00013832,2]
[353039385,1739509835016,-500.0,0.00013832,2]
[353039386,1739509835025,-500.0,0.00013832,2]
[353039387,1739509835034,-500.0,0.00013832,2]
[353039388,1739509835043,-500.0,0.00013832,2]
[353039389,1739509835053,-500.0,0.00013832,2]
[353039390,1739509835062,-500.0,0.00013832,2]
[353039391,1739509835071,-500.0,0.00013832,2]
[353039392,1739509835081,-500.0,0.00013832,2]
[353039393,1739509835090,-500.0,0.00013832,2]
[353039394,1739509835100,-501.70467411,0.00013832,2]
[353039395,1739509835109,-500.0,0.00013832,2]
[353039396,1739509835118,-503.42513287,0.00013832,2]
[353039397,1739509835128,-500.0,0.00013832,2]
[353039398,1739509835138,-500.78690807,0.00013832,2]
[353039399,1739509835148,-500.0,0.00013832,2]
[353039400,1739509835157,-501.02880602,0.00013832,2]
[353039401,1739509835167,-500.0,0.00013832,2]
[353039402,1739509835176,-500.0,0.00013832,2]
[353039403,1739509835186,-500.53716093,0.00013832,2]
[353039404,1739509835196,-500.90578574,0.00013832,2]
[353039405,1739509835205,-500.0,0.00013832,2]
[353039406,1739509835217,-500.0,0.00013832,2]
[353039407,1739509835228,-500.0,0.00013832,2]
[353039408,1739509835237,-503.623331,0.00013832,2]
[353039409,1739509835246,-502.19461125,0.00013832,2]
[353039410,1739509835257,-500.0,0.00013832,2]
[353039411,1739509835266,-168.16325266,0.00013832,2]
[353039412,1739509835276,-500.0,0.00013832,2]
[353039413,1739509835285,-500.0,0.00013832,2]
[353039414,1739509835296,-500.0,0.00013832,2]
[353039415,1739509835306,-500.0,0.00013832,2]
[353039416,1739509835315,-500.0,0.00013832,2]
[353039417,1739509835324,-501.36750273,0.00013832,2]
[353039418,1739509835333,-253.07044686,0.00013832,2]
[353039419,1739509835341,-500.0,0.00013832,2]
[353039420,1739509835351,-500.0,0.00013832,2]
[353039421,1739509835360,-500.0,0.00013848,2]
[353039422,1739509835370,-500.0,0.00013848,2]
[353039423,1739509835382,-500.0,0.00013849,2]
[353039424,1739509835392,-500.0,0.00013849,2]
[353039425,1739509835401,-503.93599152,0.0001385,2]
[353039426,1739509835411,-204.95060938,0.0001385,2]
[353039427,1739509835420,-500.0,0.0001385,2]
[353039428,1739509835430,-500.0,0.0001385,2]
[353039429,1739509835439,-500.0,0.0001385,2]
[353039430,1739509835449,-500.0,0.0001385,2]
[353039431,1739509835458,-500.0,0.0001385,2]
[353039432,1739509835468,-500.92910665,0.00013851,2]
[353039433,1739509835478,-500.0,0.00013851,2]
[353039434,1739509835487,-501.1745909,0.00013851,2]
[353039435,1739509835498,-500.0,0.00013851,2]
[353039436,1739509835507,-500.0,0.00013851,2]
[353039437,1739509835517,-1000.0,0.00013851,2]
[353039438,1739509835526,-500.0,0.00013851,2]
[353039439,1739509835536,-500.0,0.00013851,2]
[353039440,1739509835545,-500.0,0.00013851,2]
[353039441,1739509835555,-500.0,0.00013851,2]
[353039442,1739509835565,-500.0,0.00013851,2]
[353039443,1739509835573,-500.0,0.00013851,2]
[353039444,1739509835583,-500.0,0.00013851,2]
[353039445,1739509835593,-359.08170987,0.00013851,2]
[353039446,1739509835602,-245.301444,0.00013851,2]
[353039447,1739509835611,-625.01693535,0.00013851,2]
[353039448,1739509835621,-401.11622215,0.00013851,2]
[353039449,1739509835631,-184.2758864,0.00013852,2]
[353039450,1739509835645,-317.90143911,0.00013852,2]
[353039451,1739509835655,-515.15560528,0.00013852,2]
[353039452,1739509835664,-366.94295761,0.00013852,2]
[353039472,1739509838531,-133.05704239,0.00013852,2]
[353039474,1739509838541,-272.80043767,0.00013852,2]
[353039475,1739509838588,-228.12059046,0.00013852,2]
[353039476,1739509838598,-641.16324267,0.00013852,2]
[353039477,1739509838607,-504.1027579,0.00013852,2]
[353039478,1739509838617,-480.04614986,0.00013852,2]
[353039479,1739509838626,-500.12369152,0.00013852,2]
[353039480,1739509838636,-501.74261825,0.00013852,2]
[353039481,1739509838647,-628.07373742,0.00013852,2]
[353039482,1739509838657,-518.94305429,0.00013912,2]
[353039483,1739509838666,-500.0,0.00013912,2]
[353039484,1739509838676,-365.84151763,0.00013912,2]
[353039485,1739509838686,-500.0,0.00013912,2]
[353039486,1739509838695,-500.0,0.00013912,2]
[353039487,1739509838704,-500.0,0.00013912,2]
[353039488,1739509838713,-8.60666961,0.00013912,2]
[353039489,1739509838724,-491.39333039,0.00013912,2]
[353039490,1739509838734,-500.0,0.00013912,2]
[353039491,1739509838743,-500.0,0.00013912,2]
[353039492,1739509838752,-500.0,0.00013912,2]
[353039493,1739509838761,-500.0,0.00013912,2]
[353039494,1739509838771,-472.05504221,0.00013912,2]
[353039495,1739509838780,-500.0,0.00013912,2]
[353039496,1739509838789,-452.48306004,0.00013912,2]
[353039497,1739509838799,-500.0,0.00013912,2]
[353039498,1739509838808,-500.0,0.00013912,2]
[353039499,1739509838818,-500.0,0.00013912,2]
[353039500,1739509838827,-500.0,0.00013912,2]
[353039501,1739509838836,-500.0,0.00013912,2]
[353039502,1739509838846,-500.0,0.00013912,2]
[353039503,1739509838856,-500.0,0.00013912,2]
[353039504,1739509838865,-626.08911003,0.00013912,2]
[353039505,1739509838875,-500.0,0.00013912,2]
[353039506,1739509838886,-500.0,0.00013912,2]
[353039507,1739509838895,-500.0,0.00013912,2]
[353039508,1739509838904,-500.0,0.00013912,2]
[353039509,1739509838914,-192.99967711,0.00013912,2]
[353039510,1739509838925,-500.0,0.00013912,2]
[353039511,1739509838935,-500.0,0.00013912,2]
[353039512,1739509838944,-500.0,0.00013912,2]
[353039513,1739509838954,-500.0,0.00013912,2]
[353039514,1739509838963,-500.0,0.00013912,2]
[353039515,1739509838973,-500.0,0.00013912,2]
[353039516,1739509838982,-500.0,0.00013912,2]
[353039517,1739509838992,-500.0,0.00013912,2]
[353039518,1739509839002,-500.0,0.00013912,2]
[353039519,1739509839011,-500.0,0.00013912,2]
[353039520,1739509839033,-500.0,0.00013912,2]
[353039521,1739509839044,-500.0,0.00013912,2]
[353039522,1739509839054,-500.0,0.00013912,2]
[353039523,1739509839063,-500.0,0.00013912,2]
[353039524,1739509839073,-670.04,0.00013913,2]
[353039525,1739509839083,-555.22,0.00013913,2]
[353039526,1739509839092,-500.0,0.00013913,2]
[353039527,1739509839104,-500.0,0.00013913,2]
[353039528,1739509839119,-500.0,0.00013913,2]
[353039529,1739509839133,-500.0,0.00013913,2]
[353039530,1739509839143,-500.0,0.00013913,2]
[353039531,1739509839154,-500.0,0.00013913,2]
[353039532,1739509839164,-500.0,0.00013913,2]
[353039533,1739509839174,-500.0,0.00013913,2]
[353039534,1739509839183,-623.04,0.00013913,2]
[353039535,1739509839193,-500.0,0.00013913,2]
[353039536,1739509839203,-567.78,0.00013913,2]
[353039537,1739509839214,-500.0,0.00013913,2]
[353039538,1739509839225,-500.0,0.00013913,2]
[353039539,1739509839235,-548.71,0.00013913,2]
[353039540,1739509839244,-550.57,0.00013913,2]
[353039541,1739509839254,-500.0,0.00013913,2]
[353039542,1739509839263,-500.0,0.00013913,2]
[353039543,1739509839273,-500.0,0.00013913,2]
[353039544,1739509839282,-171.2,0.00013913,2]
[353039545,1739509839292,-500.0,0.00013913,2]
[353039546,1739509839301,-500.0,0.00013913,2]
[353039547,1739509839311,-803.53,0.00013913,2]
[353039548,1739509839321,-552.7,0.00013913,2]
[353039549,1739509839331,-3942.4,0.00013913,2]
[353039550,1739509839340,-500.0,0.00013913,2]
[353039551,1739509839350,-564.98,0.00013913,2]
[353039552,1739509839360,-500.0,0.00013913,2]
[353039553,1739509839369,-500.0,0.00013914,2]
[353039554,1739509839379,-500.0,0.00013914,2]
[353039555,1739509839389,-500.0,0.00013914,2]
[353039556,1739509839398,-500.0,0.00013914,2]
[353039557,1739509839409,-500.0,0.00013914,2]
[353039558,1739509839418,-500.0,0.00013914,2]
[353039559,1739509839427,-271.57553242,0.00013914,2]
[353039560,1739509839437,-500.0,0.00013914,2]
[353039561,1739509839446,-500.0,0.00013914,2]
[353039562,1739509839456,-500.0,0.00013914,2]
[353039563,1739509839465,-500.0,0.00013914,2]
[353039564,1739509839475,-500.0,0.00013914,2]
[353039565,1739509839484,-500.0,0.00013914,2]
[353039566,1739509839493,-500.0,0.00013914,2]
[353039567,1739509839503,-500.0,0.00013914,2]
[353039568,1739509839512,-500.0,0.00013914,2]
[353039569,1739509839522,-500.0,0.00013914,2]
[353039570,1739509839531,-500.0,0.00013914,2]
[353039571,1739509839541,-7087.21,0.00013914,2]
[353039572,1739509839550,-500.0,0.00013914,2]
[353039573,1739509839560,-500.0,0.00013914,2]
[353039574,1739509839569,-500.0,0.00013914,2]
[353039575,1739509839579,-2526.17,0.00013914,2]
[353039576,1739509839589,-500.0,0.00013914,2]
[353039577,1739509839598,-500.0,0.00013914,2]
[353039578,1739509839607,-500.0,0.00013914,2]
[353039579,1739509839617,-500.0,0.00013914,2]
[353039580,1739509839627,-500.0,0.00013914,2]
[353039581,1739509839636,-500.0,0.00013914,2]
[353039582,1739509839645,-500.0,0.00013914,2]
[353039583,1739509839655,-260.29295359,0.00013914,2]
[353039584,1739509839664,-500.0,0.00013914,2]
[353039585,1739509839674,-500.0,0.00013932,2]
[353039586,1739509839683,-500.0,0.00013932,2]
[353039587,1739509839693,-505.32547186,0.00013932,2]
[353039588,1739509839702,-500.0,0.00013933,2]
[353039589,1739509839712,-500.0,0.00013933,2]
[353039590,1739509839721,-500.0,0.00013933,2]